bitfinex/quotes_ETHUSD_20250929
["timestamp","ask_amount","ask_price","bid_price","bid_amount"]
[1759129181579,11.13550212,4107.5,4107.4,1.3320836]
[1759129182006,11.08970212,4107.5,4107.4,1.3320836]
[1759129182909,10.70775113,4107.5,4107.4,1.3320836]
[1759129183076,12.1096213,4107.5,4107.4,1.3320836]
[1759129183680,11.6744213,4107.5,4107.4,1.3320836]
[1759129185815,12.0563631,4107.5,4107.4,1.3320836]
[1759129186611,12.4937631,4107.5,4107.4,1.3320836]
[1759129187384,7.21838287,4107.5,4107.4,1.3320836]
[1759129187583,7.21838287,4107.5,4107.4,2.0325836]
[1759129187817,5.8165127,4107.5,4107.4,2.0325836]
[1759129188294,5.8165127,4107.5,4107.4,1.5733836]
[1759129188694,5.8165127,4107.5,4107.4,2.0325836]
[1759129189981,5.8165127,4107.5,4107.4,1.5733836]
[1759129194812,5.8165127,4107.5,4107.4,1.3320836]
[1759129195011,7.12541145,4107.5,4107.4,1.3320836]
[1759129195413,7.12541145,4107.5,4107.4,1.5733836]
[1759129196741,6.74346965,4107.5,4107.4,1.5733836]
[1759129198543,8.20846965,4107.5,4107.4,1.3320836]
[1759129198906,6.74346965,4107.5,4107.4,1.3320836]
[1759129199738,7.12540437,4107.5,4107.4,1.3320836]
[1759129200129,6.74346965,4107.5,4107.4,1.3320836]
[1759129200331,10.27355113,4107.5,4107.4,1.5733836]
[1759129200530,5.4355709,4107.5,4107.4,2.0325836]
[1759129200736,10.27355113,4107.5,4107.4,2.0325836]
[1759129200936,10.27355113,4107.5,4107.4,1.3320836]
[1759129201247,5.4355709,4107.5,4107.4,1.3320836]
[1759129201552,7.18957547,4107.5,4107.4,1.3320836]
[1759129202351,6.70637547,4107.5,4107.4,1.3320836]
[1759129203251,11.5443557,4107.5,4107.4,2.0325836]
[1759129203418,10.65549659,4107.5,4107.4,2.0325836]
[1759129203939,10.65549659,4107.5,4107.4,1.5733836]
[1759129204648,10.65549659,4107.5,4107.4,1.3320836]
[1759129206359,5.81751636,4107.5,4107.4,2.0325836]
[1759129206651,0.38294546,4107.5,4107.4,2.0325836]
[1759129206859,2.81751636,4107.5,4107.4,2.0325836]
[1759129208368,0.38294546,4107.5,4107.4,2.0325836]
[1759129209461,2.81751636,4107.5,4107.4,2.0325836]
[1759129209971,2.4355709,4107.5,4107.4,2.0325836]
[1759129213244,2.81748607,4107.5,4107.4,2.0325836]
[1759129215943,0.38291517,4107.5,4107.4,2.0325836]
[1759129216476,0.38291517,4107.5,4107.4,2.0460836]
[1759129216852,2.81748607,4107.5,4107.4,1.3320836]
[1759129217052,7.0316327,4107.5,4107.4,1.3320836]
[1759129217966,6.5830327,4107.5,4107.4,1.3320836]
[1759129218160,6.5830327,4107.5,4107.4,1.5650836]
[1759129218370,6.5830327,4107.5,4107.4,1.3320836]
[1759129218568,6.5830327,4107.5,4107.4,1.5650836]
[1759129218765,5.81748607,4107.5,4107.4,1.5650836]
[1759129220374,5.81748607,4107.5,4107.4,1.3320836]
[1759129220678,5.81748607,4107.5,4107.4,1.5650836]
[1759129220871,5.81748607,4107.5,4107.4,1.3320836]
[1759129221554,6.26608607,4107.5,4107.4,1.3320836]
[1759129221877,7.14072394,4107.5,4107.4,1.3320836]
[1759129222076,6.75880877,4107.5,4107.4,1.3320836]
[1759129222579,6.80460877,4107.5,4107.4,1.3320836]
[1759129222883,5.4355709,4107.5,4107.4,1.3320836]
[1759129223084,5.4355709,4107.5,4107.4,1.5650836]
[1759129224289,3.001,4107.5,4107.4,2.0377836]
[1759129224451,5.4355709,4107.5,4107.4,2.0377836]
[1759129225070,3.001,4107.5,4107.4,2.0377836]
[1759129225477,5.4355709,4107.5,4107.4,2.0377836]
[1759129225780,5.4355709,4107.5,4107.4,1.3320836]
[1759129226479,5.4355709,4107.5,4107.4,1.5650836]
[1759129227278,3.001,4107.5,4107.4,1.5650836]
[1759129227677,3.001,4107.5,4107.4,2.0377836]
[1759129228058,5.4355709,4107.5,4107.4,2.0377836]
[1759129228259,5.4355709,4107.5,4107.4,1.5650836]
[1759129228679,5.4355709,4107.5,4107.4,2.0377836]
[1759129228987,3.001,4107.5,4107.4,2.0377836]
[1759129229183,0.001,4107.5,4107.4,2.0377836]
[1759129229494,0.001,4107.5,4107.4,2.24196196]
[1759129229678,0.1226,4107.5,4107.4,2.24196196]
[1759129229875,0.1226,4107.5,4107.4,16.74196196]
[1759129231379,0.001,4107.5,4107.4,19.29819213]
[1759129233002,0.001,4107.5,4107.4,20.09019213]
[1759129233309,0.001,4107.5,4107.4,23.09019213]
[1759129242311,0.001,4107.5,4107.4,22.29819213]
[1759129242512,0.001,4107.5,4107.4,18.59249213]
[1759129243883,0.001,4107.5,4107.4,18.84149213]
[1759129245426,0.001,4107.5,4107.4,4.34149213]
[1759129246135,0.001,4107.5,4107.4,18.84149213]
[1759129248430,0.001,4107.5,4107.4,19.31419213]
[1759129250150,0.4459,4107.5,4107.4,16.15786196]
[1759129250327,0.4917,4107.5,4107.4,1.3320836]
[1759129250850,0.4917,4107.5,4107.4,3.76671377]
[1759129251011,0.4917,4107.5,4107.4,1.3320836]
[1759129251642,0.4917,4107.5,4107.4,15.8320836]
[1759129252817,0.4459,4107.5,4107.4,15.8320836]
[1759129253529,0.4459,4107.5,4107.4,18.26671377]
[1759129253737,0.001,4107.5,4107.4,18.26671377]
[1759129254170,0.001,4107.5,4107.4,18.51571377]
[1759129254330,0.001,4107.5,4107.4,18.98841377]
[1759129254530,0.001,4107.5,4107.4,18.51571377]
[1759129255048,0.001,4107.5,4107.4,18.98841377]
[1759129255233,0.001,4107.5,4107.4,19.26446972]
[1759129255628,0.001,4107.5,4107.4,18.79176972]
[1759129255933,0.001,4107.5,4107.4,18.51571377]
[1759129256442,0.001,4107.5,4107.4,4.01571377]
[1759129256630,0.001,4107.5,4107.4,4.04006007]
[1759129256831,0.001,4107.5,4107.4,18.54006007]
[1759129257026,0.001,4107.5,4107.4,18.51571377]
[1759129258358,0.001,4107.5,4107.4,18.26671377]
[1759129258526,0.001,4107.5,4107.4,1.3320836]
[1759129258861,0.4459,4107.5,4107.4,1.3320836]
[1759129260333,0.001,4107.5,4107.4,4.04006007]
[1759129260545,0.001,4107.5,4107.4,5.03876608]
[1759129260750,0.001,4107.5,4107.4,5.01441978]
[1759129260968,0.001,4107.5,4107.4,20.30641978]
[1759129261383,0.001,4107.5,4107.4,23.30641978]
[1759129269806,0.001,4107.5,4107.4,18.67111978]
[1759129270004,0.4462,4107.5,4107.4,18.26671377]
[1759129270309,0.4462,4107.5,4107.4,19.05871377]
[1759129270712,0.492,4107.5,4107.4,18.26671377]
[1759129271508,0.4462,4107.5,4107.4,18.26671377]
[1759129272804,0.001,4107.5,4107.4,18.26671377]
[1759129273005,0.43,4107.5,4107.4,18.26671377]
[1759129273326,0.4758,4107.5,4107.4,15.8320836]
[1759129274283,0.43,4107.5,4107.4,18.26671377]
[1759129274484,0.001,4107.5,4107.4,18.26671377]
[1759129275816,0.001,4107.5,4107.4,19.74551377]
[1759129276121,0.001,4107.5,4107.4,21.96393861]
[1759129276417,0.001,4107.5,4107.4,21.51373861]
[1759129276784,0.001,4107.5,4107.4,21.96393861]
[1759129277597,0.001,4107.5,4107.4,24.96393861]
[1759129279726,0.001,4107.5,4107.4,25.08553861]
[1759129283000,0.43,4107.5,4107.4,3.76671377]
[1759129283316,0.4758,4107.5,4107.4,3.76671377]
[1759129284322,0.43,4107.5,4107.4,3.76671377]
[1759129284490,0.001,4107.5,4107.4,3.76671377]
[1759129284691,0.001,4107.5,4107.4,3.79106007]
[1759129285019,0.001,4107.5,4107.4,3.76671377]
[1759129286020,0.43,4107.5,4107.4,18.26671377]
[1759129288324,0.4758,4107.5,4107.4,1.3320836]
[1759129289024,0.76681964,4107.5,4107.4,1.3320836]
[1759129289796,3.20139054,4107.5,4107.4,1.3320836]
[1759129290098,6.20139054,4107.5,4107.4,1.3320836]
[1759129290305,11.04060799,4107.5,4107.4,1.3320836]
[1759129292324,6.58331682,4107.5,4107.4,1.3320836]
[1759129292699,4.14874592,4107.5,4107.4,1.3320836]
[1759129293100,6.58331682,4107.5,4107.4,1.3320836]
[1759129293296,4.14874592,4107.5,4107.4,1.3320836]
[1759129293598,1.10294592,4107.5,4107.4,1.3320836]
[1759129293800,0.38292628,4107.5,4107.4,1.3320836]
[1759129294107,0.001,4107.5,4107.4,4.02766007]
[1759129294646,0.001,4107.5,4107.4,4.00331377]
[1759129294824,0.001,4107.5,4107.4,18.50331377]
[1759129295024,0.001,4107.5,4107.4,18.26671377]
[1759129295943,0.43,4107.5,4107.4,15.8320836]
[1759129296921,0.001,4107.5,4107.4,15.8320836]
[1759129297132,0.001,4107.5,4107.4,18.26671377]
[1759129297645,0.001,4107.5,4107.4,15.8320836]
[1759129298544,2.616e-05,4107.5,4107.4,15.8320836]
[1759129298746,2.616e-05,4107.5,4107.4,18.26671377]
[1759129299145,2.616e-05,4107.5,4107.4,15.8320836]
[1759129300150,2.616e-05,4107.5,4107.4,18.26671377]
[1759129300447,2.616e-05,4107.5,4107.4,18.49671377]
[1759129302755,2.616e-05,4107.5,4107.4,18.26671377]
[1759129303324,2.616e-05,4107.5,4107.4,3.76671377]
[1759129303724,2.616e-05,4107.5,4107.4,18.26671377]
[1759129303947,2.616e-05,4107.5,4107.4,20.41971001]
[1759129304349,2.616e-05,4107.5,4107.4,17.98507984]
[1759129305358,2.616e-05,4107.5,4107.4,20.41971001]
[1759129305858,0.45802616,4107.5,4107.4,1.3320836]
[1759129306235,2.616e-05,4107.5,4107.4,1.3320836]
[1759129306630,2.616e-05,4107.5,4107.4,3.99671377]
[1759129306831,2.616e-05,4107.5,4107.4,4.46961377]
[1759129307032,2.616e-05,4107.5,4107.4,3.99671377]
[1759129307258,2.616e-05,4107.5,4107.4,5.11315967]
[1759129307427,2.616e-05,4107.5,4107.4,2.6785295]
[1759129307627,2.616e-05,4107.5,4107.4,5.11315967]
[1759129308240,2.616e-05,4107.5,4107.4,19.61315967]
[1759129313432,2.616e-05,4107.5,4107.4,2.2056295]
[1759129313776,2.616e-05,4107.5,4107.4,1.3320836]
[1759129314131,2.616e-05,4107.5,4107.4,3.76671377]
[1759129314770,2.616e-05,4107.5,4107.4,1.3320836]
[1759129314954,2.616e-05,4107.5,4107.4,3.76671377]
[1759129315447,2.616e-05,4107.5,4107.4,3.99671377]
[1759129315961,2.616e-05,4107.5,4107.4,6.13754983]
[1759129317235,2.616e-05,4107.5,4107.4,3.99671377]
[1759129317437,2.616e-05,4107.5,4107.4,18.49671377]
[1759129320075,2.616e-05,4107.5,4107.4,18.96961377]
[1759129320387,2.616e-05,4107.5,4107.4,19.76161377]
[1759129320740,2.616e-05,4107.5,4107.4,18.49671377]
[1759129321055,2.616e-05,4107.5,4107.4,3.66460498]
[1759129321256,0.45802616,4107.5,4107.4,1.3320836]
[1759129321573,7.77579313,4107.5,4107.4,1.3320836]
[1759129323538,8.15771227,4107.5,4107.4,1.3320836]
[1759129323735,5.72314137,4107.5,4107.4,1.3320836]
[1759129323974,8.98563903,4107.5,4107.4,1.3320836]
[1759129324475,6.55106813,4107.5,4107.4,1.3320836]
[1759129328281,0.3819453,4107.5,4107.4,1.3320836]
[1759129328484,0.3819453,4107.5,4107.4,3.99671377]
[1759129328485,0.12162616,4107.5,4107.4,3.99671377]
[1759129328783,2.616e-05,4107.5,4107.4,4.46961377]
[1759129330971,2.616e-05,4107.5,4107.4,3.99671377]
[1759129331994,2.616e-05,4107.5,4107.4,18.49671377]
[1759129332205,2.616e-05,4107.5,4107.4,18.20149952]
[1759129332499,0.51222616,4107.5,4107.4,1.3320836]
[1759129332910,0.46642616,4107.5,4107.4,1.3320836]
[1759129333406,2.616e-05,4107.5,4107.4,3.99381377]
[1759129333813,2.616e-05,4107.5,4107.4,1.5591836]
[1759129334112,2.616e-05,4107.5,4107.4,1.3320836]
[1759129335364,0.44212616,4107.5,4107.4,1.3320836]
[1759129336995,0.73435817,4107.5,4107.4,1.3320836]
[1759129337194,0.48792616,4107.5,4107.4,1.3320836]
[1759129337500,0.86983953,4107.5,4107.4,1.3320836]
[1759129339536,0.82403953,4107.5,4107.4,1.3320836]
[1759129342005,0.44212616,4107.5,4107.4,1.3320836]
[1759129342337,2.616e-05,4107.5,4107.4,1.5591836]
[1759129343649,2.616e-05,4107.5,4107.4,2.0092836]
[1759129343841,2.616e-05,4107.5,4107.4,1.5591836]
[1759129344146,2.616e-05,4107.5,4107.4,2.0092836]
[1759129345543,2.616e-05,4107.5,4107.4,1.5591836]
[1759129345740,0.24347401,4107.5,4107.4,1.3320836]
[1759129346073,3.12014491,4107.5,4107.4,1.3320836]
[1759129346556,0.68557401,4107.5,4107.4,1.3320836]
[1759129346721,0.24347401,4107.5,4107.4,1.3320836]
[1759129347825,2.616e-05,4107.5,4107.4,1.3320836]
[1759129348256,0.12162616,4107.5,4107.4,1.3320836]
[1759129348434,0.12162616,4107.5,4107.4,2.0092836]
[1759129351552,0.12162616,4107.5,4107.4,16.5092836]
[1759129351954,0.12162616,4107.5,4107.4,18.94391377]
[1759129352354,2.616e-05,4107.5,4107.4,21.08218341]
[1759129355161,2.616e-05,4107.5,4107.4,6.58218341]
[1759129355458,2.616e-05,4107.5,4107.4,4.44391377]
[1759129355657,2.616e-05,4107.5,4107.4,18.94391377]
[1759129356772,2.616e-05,4107.5,4107.4,19.06551377]
[1759129359190,2.616e-05,4107.5,4107.4,19.85751377]
[1759129361889,2.616e-05,4107.5,4107.4,18.61541377]
[1759129362195,2.616e-05,4107.5,4107.4,21.17182986]
[1759129367811,2.616e-05,4107.5,4107.4,18.05909969]
[1759129368108,2.616e-05,4107.5,4107.4,20.74312986]
[1759129368518,2.616e-05,4107.5,4107.4,18.05909969]
[1759129368682,2.616e-05,4107.5,4107.4,15.8320836]
[1759129368882,0.47822616,4107.5,4107.4,15.8320836]
[1759129369095,0.59982616,4107.5,4107.4,15.8320836]
[1759129369880,0.55402616,4107.5,4107.4,15.8320836]
[1759129370094,0.12162616,4107.5,4107.4,15.8320836]
[1759129370289,2.616e-05,4107.5,4107.4,15.8320836]
[1759129370496,2.616e-05,4107.5,4107.4,16.0814836]
[1759129371016,2.616e-05,4107.5,4107.4,15.8320836]
[1759129372902,0.43242616,4107.5,4107.4,15.8320836]
[1759129373312,2.616e-05,4107.5,4107.4,15.8320836]
[1759129375301,0.43242616,4107.5,4107.4,1.3320836]
[1759129376535,2.616e-05,4107.5,4107.4,1.5814836]
[1759129376722,2.616e-05,4107.5,4107.4,1.6058299]
[1759129377744,2.616e-05,4107.5,4107.4,4.04046007]
[1759129378635,2.616e-05,4107.5,4107.4,1.6058299]
[1759129379136,2.616e-05,4107.5,4107.4,1.3320836]
[1759129379341,2.616e-05,4107.5,4107.4,15.8320836]
[1759129380726,2.616e-05,4107.5,4107.4,1.3320836]
[1759129380727,8.4646687,4107.5,4107.4,1.3320836]
[1759129380959,9.60038083,4107.5,4107.4,1.3320836]
[1759129381357,12.60038083,4107.5,4107.4,1.3320836]
[1759129385566,12.98233347,4107.5,4107.4,1.3320836]
[1759129387873,2.43468945,4107.3,4107.2,0.002]
[1759129388072,24.0832197,4107.3,4107.2,0.002]
[1759129388399,24.5614197,4107.3,4107.2,0.002]
[1759129391966,24.65910827,4107.3,4107.2,0.002]
[1759129392570,16.28665027,4107.3,4107.2,0.002]
[1759129392977,7.9528517,4107.3,4107.2,0.002]
[1759129393303,11.51306109,4107.3,4107.2,0.002]
[1759129393509,11.46726109,4107.3,4107.2,0.002]
[1759129393872,11.84925035,4107.3,4107.2,0.002]
[1759129395869,13.31325035,4107.3,4107.2,0.002]
[1759129396077,11.84925035,4107.3,4107.2,0.002]
[1759129396384,12.95631223,4107.3,4107.2,0.002]
[1759129398489,0.38198926,4107.3,4107.2,0.002]
[1759129398687,2.4346407,4107.5,4107.2,0.7057]
[1759129398990,2.43463017,4107.4,4107.3,0.7037]
[1759129399303,2.43463017,4107.4,4107.3,0.4713]
[1759129399741,2.43463017,4107.4,4107.3,0.7037]
[1759129400042,0.1216,4107.3,4107.2,0.002]
[1759129400543,0.1216,4107.3,4107.2,0.2344]
[1759129400747,0.1216,4107.3,4107.2,0.7057]
[1759129404047,2.616e-05,4107.5,4107.2,0.7057]
[1759129404266,2.616e-05,4107.5,4107.3,0.7037]
[1759129404615,2.616e-05,4107.5,4107.4,0.7037]
[1759129406517,2.616e-05,4107.5,4107.4,15.2037]
[1759129408937,2.43459706,4107.5,4107.4,14.5]
[1759129409167,2.43459706,4107.5,4107.2,0.002]
[1759129409168,0.1216,4107.4,4107.2,0.002]
[1759129410047,2.99113905,4107.4,4107.2,0.002]
[1759129410448,0.4349,4107.3,4107.2,0.002]
[1759129410856,0.1216,4107.4,4107.2,0.002]
[1759129412567,5.91538945,4107.3,4107.2,0.002]
[1759129412770,7.4327283,4107.3,4107.2,0.002]
[1759129414244,12.27376261,4107.3,4107.2,0.002]
[1759129415566,15.99440261,4107.3,4107.2,0.002]
[1759129416361,23.55105951,4107.3,4107.2,0.002]
[1759129416566,22.47705951,4107.3,4107.2,0.002]
[1759129417483,25.57767251,4107.3,4107.2,0.002]
[1759129418291,23.71514751,4107.3,4107.2,0.002]
[1759129418496,12.65575151,4107.3,4107.2,0.002]
[1759129418677,12.60995151,4107.3,4107.2,0.002]
[1759129419499,12.22796261,4107.3,4107.2,0.002]
[1759129419973,11.79306261,4107.3,4107.2,0.002]
[1759129421573,12.26206261,4107.3,4107.2,0.002]
[1759129423675,12.64404056,4107.3,4107.2,0.002]
[1759129424688,12.17504056,4107.3,4107.2,0.002]
[1759129426709,12.64404056,4107.3,4107.2,0.002]
[1759129427092,12.17504056,4107.3,4107.2,0.002]
[1759129427772,12.64404056,4107.3,4107.2,0.002]
[1759129433009,12.26206261,4107.3,4107.2,0.002]
[1759129435814,11.79306261,4107.3,4107.2,0.002]
[1759129436012,12.17504037,4107.3,4107.2,0.002]
[1759129439286,11.79306261,4107.3,4107.2,0.002]
[1759129439586,11.79306261,4107.3,4107.1,0.002]
[1759129439587,11.79306261,4107.3,4107.1,0.2363]
[1759129439819,7.0270065,4107.2,4107.1,0.1883]
[1759129440016,7.0270065,4107.2,4107.0,0.002]
[1759129440017,5.43480801,4107.1,4107.0,0.002]
[1759129440215,5.55640801,4107.1,4107.0,0.002]
[1759129440718,5.55640801,4107.1,4107.0,0.4617]
[1759129441812,5.55640801,4107.1,4107.0,0.696]
[1759129442316,0.1216,4107.1,4107.0,0.696]
[1759129442522,2.55640801,4107.1,4107.0,0.696]
[1759129442717,0.1216,4107.1,4107.0,0.696]
[1759129443099,10.39744232,4107.1,4107.0,0.696]
[1759129443420,11.68085652,4107.1,4107.0,0.2363]
[1759129443726,11.68085652,4107.1,4107.0,0.002]
[1759129444223,11.68085652,4107.1,4107.0,0.696]
[1759129445946,11.68085652,4107.1,4107.0,0.2363]
[1759129446148,12.14985652,4107.1,4107.0,0.002]
[1759129446555,11.68085652,4107.1,4107.0,0.002]
[1759129449552,12.13825652,4107.1,4107.0,0.002]
[1759129451840,11.68085652,4107.1,4107.0,0.002]
[1759129452240,11.68085652,4107.1,4107.0,0.2385]
[1759129453152,11.68085652,4107.1,4107.0,0.6823]
[1759129453655,12.06282366,4107.1,4107.0,0.6823]
[1759129454043,12.06282366,4107.1,4107.0,0.2404]
[1759129454960,12.06282366,4107.1,4107.0,0.6823]
[1759129455560,12.06282366,4107.1,4107.0,0.2404]
[1759129456869,12.06282366,4107.1,4107.0,0.6823]
[1759129457551,12.06282366,4107.1,4107.0,0.2404]
[1759129458462,12.06282366,4107.1,4107.0,0.6823]
[1759129458770,12.06282366,4107.1,4107.0,0.002]
[1759129459463,11.68085652,4107.1,4107.0,0.002]
[1759129459772,11.68085652,4107.1,4107.0,0.2404]
[1759129460343,11.68085652,4107.1,4107.0,0.002]
[1759129460749,11.68185652,4107.1,4107.0,0.002]
[1759129461676,11.68185652,4107.1,4107.0,0.2404]
[1759129463552,11.68185652,4107.1,4107.0,0.002]
[1759129463750,12.06382572,4107.1,4107.0,0.002]
[1759129465182,12.06382572,4107.1,4107.0,0.2404]
[1759129466258,12.06382572,4107.1,4107.0,0.002]
[1759129466987,12.49642572,4107.1,4107.0,0.002]
[1759129468000,12.58822572,4107.1,4107.0,0.002]
[1759129468607,12.49642572,4107.1,4107.0,0.002]
[1759129469450,11.68185652,4107.1,4107.0,0.002]
[1759129469790,12.11445652,4107.1,4107.0,0.002]
[1759129470400,11.68185652,4107.1,4107.0,0.002]
[1759129470556,12.20625652,4107.1,4107.0,0.002]
[1759129471589,12.11445652,4107.1,4107.0,0.002]
[1759129472666,11.68185652,4107.1,4107.0,0.002]
[1759129473797,12.11445652,4107.1,4107.0,0.002]
[1759129474297,7.27342221,4107.1,4107.0,0.002]
[1759129476491,8.73742221,4107.1,4107.0,0.002]
[1759129476697,7.27342221,4107.1,4107.0,0.002]
[1759129478391,6.84082221,4107.1,4107.0,0.002]
[1759129478594,6.84082221,4107.1,4107.0,0.2404]
[1759129478795,6.84082221,4107.1,4107.0,0.6823]
[1759129479165,6.84082221,4107.1,4107.0,0.2404]
[1759129479796,6.84082221,4107.1,4107.0,0.6717]
[1759129480601,5.43580801,4107.1,4107.0,0.6717]
[1759129481169,5.43580801,4107.1,4107.0,15.1717]
[1759129485206,5.43580801,4107.1,4107.0,0.6717]
[1759129488612,5.86580801,4107.1,4107.0,0.002]
[1759129489110,5.96348441,4107.1,4107.0,0.002]
[1759129489305,6.85087948,4107.1,4107.0,0.002]
[1759129489512,6.42087948,4107.1,4107.0,0.002]
[1759129490118,6.42087948,4107.1,4107.0,0.2295]
[1759129491526,6.42087948,4107.1,4107.0,0.6608]
[1759129492117,5.53348441,4107.1,4107.0,0.6608]
[1759129492413,5.53348441,4107.1,4107.0,0.5608]
[1759129492814,5.55646729,4107.0,4106.9,0.002]
[1759129493722,5.65413558,4107.0,4106.9,0.002]
[1759129494318,5.65413558,4107.0,4106.9,0.2295]
[1759129494822,9.96842741,4107.0,4106.9,0.002]
[1759129495286,9.53842741,4107.0,4106.9,0.002]
[1759129496090,2.43498587,4106.8,4106.7,0.226]
[1759129496288,5.47298587,4106.8,4106.5,14.9313]
[1759129496600,5.47298587,4106.8,4106.6,0.4313]
[1759129496924,6.77056943,4106.8,4106.7,0.4313]
[1759129497288,9.2055553,4106.8,4106.7,0.4313]
[1759129498227,9.2055553,4106.8,4106.7,0.6588]
[1759129499730,9.2055553,4106.8,4106.7,15.1588]
[1759129500631,6.77056943,4106.8,4106.7,15.1588]
[1759129501235,9.2055553,4106.8,4106.7,15.1588]
[1759129501832,9.2055553,4106.8,4106.7,14.7275]
[1759129502422,9.2055553,4106.8,4106.7,0.2275]
[1759129502622,10.36969886,4106.8,4106.7,0.2275]
[1759129502937,6.77056943,4106.8,4106.7,0.6588]
[1759129503715,9.2055553,4106.8,4106.7,0.6588]
[1759129504039,6.77056943,4106.8,4106.7,0.6588]
[1759129504738,9.2055553,4106.8,4106.7,0.6588]
[1759129505640,9.2055553,4106.8,4106.7,0.2275]
[1759129506048,6.77056943,4106.8,4106.7,0.2275]
[1759129506409,9.2055553,4106.8,4106.7,14.7275]
[1759129506742,9.2055553,4106.8,4106.7,14.5]
[1759129507752,2.55664517,4106.7,4106.6,0.002]
[1759129508243,0.1216,4106.7,4106.6,14.502]
[1759129508573,2.98794517,4106.7,4106.6,14.7295]
[1759129509450,0.5529,4106.7,4106.6,14.7295]
[1759129509752,2.98794517,4106.7,4106.6,14.7295]
[1759129510116,0.5529,4106.7,4106.6,15.1595]
[1759129510355,0.1216,4106.7,4106.6,16.67545]
[1759129510555,0.001,4107.1,4106.6,16.67545]
[1759129510556,0.001,4107.1,4107.0,2.43486729]
[1759129510857,2.286,4107.1,4107.0,2.45921596]
[1759129511148,0.001,4107.1,4106.7,0.2368]
[1759129511351,3.042,4107.0,4106.8,0.2368]
[1759129511652,3.042,4107.0,4106.9,0.2368]
[1759129512054,3.0,4106.9,4106.6,14.502]
[1759129512217,3.044,4106.8,4106.7,0.2368]
[1759129512421,3.044,4106.8,4106.6,14.502]
[1759129512860,5.47898665,4106.8,4106.6,14.502]
[1759129513816,2.43504517,4106.7,4106.6,14.502]
[1759129514248,5.47899048,4106.8,4106.6,14.502]
[1759129514446,5.47899048,4106.8,4106.6,14.7363]
[1759129515658,5.47899048,4106.8,4106.7,0.2343]
[1759129516260,5.47899048,4106.8,4106.6,14.502]
[1759129516261,2.43504517,4106.7,4106.6,14.502]
[1759129516621,5.47999258,4106.8,4106.6,14.502]
[1759129517148,2.43504517,4106.7,4106.6,14.502]
[1759129517726,2.43504517,4106.7,4106.6,14.7363]
[1759129517962,3.045,4106.8,4106.6,14.7363]
[1759129517963,5.48000248,4106.8,4106.6,14.7363]
[1759129518132,3.045,4106.8,4106.6,14.7363]
[1759129518328,3.045,4106.8,4106.7,0.2343]
[1759129518929,3.044,4106.8,4106.7,0.2343]
[1759129519127,5.47898587,4106.8,4106.7,0.2343]
[1759129519328,2.43504517,4106.7,4106.6,14.502]
[1759129519543,2.43504517,4106.7,4106.6,14.7363]
[1759129519744,3.043,4106.7,4106.6,14.7363]
[1759129519966,3.043,4106.7,4106.6,14.502]
[1759129520165,3.043,4106.7,4106.6,14.7363]
[1759129520891,2.43504517,4106.7,4106.6,14.502]
[1759129521090,5.47804517,4106.7,4106.6,14.502]
[1759129521453,5.47804517,4106.7,4106.6,14.7363]
[1759129523701,5.47804517,4106.7,4106.6,14.502]
[1759129524566,5.47804517,4106.7,4106.6,0.002]
[1759129525156,3.4821,4106.7,4106.6,0.002]
[1759129525965,5.91714517,4106.7,4106.6,0.2363]
[1759129526468,5.91714517,4106.7,4106.6,0.002]
[1759129527591,3.4821,4106.7,4106.6,0.002]
[1759129527791,3.4821,4106.7,4106.6,0.6754]
[1759129527981,3.4821,4106.7,4106.6,0.2363]
[1759129528187,3.4821,4106.7,4106.6,0.002]
[1759129528713,3.4821,4106.7,4106.6,0.6754]
[1759129529192,3.041,4106.7,4106.6,0.6754]
[1759129530991,0.001,4106.8,4106.6,0.6754]
[1759129531176,3.001,4106.8,4106.7,0.2343]
[1759129531375,8.47698587,4106.8,4106.7,0.2343]
[1759129531573,2.55664517,4106.7,4106.6,0.002]
[1759129531780,2.55664517,4106.7,4106.6,0.2363]
[1759129532712,2.55664517,4106.7,4106.6,0.002]
[1759129536200,0.1216,4106.7,4106.6,0.2363]
[1759129536576,0.1216,4106.7,4106.6,0.6754]
[1759129537509,2.55664517,4106.7,4106.6,0.6754]
[1759129538515,2.55664517,4106.7,4106.6,0.2363]
[1759129538810,2.55664517,4106.7,4106.6,0.002]
[1759129540002,2.55664517,4106.7,4106.6,0.2336]
[1759129541017,2.55664517,4106.7,4106.6,0.002]
[1759129542183,3.44918264,4106.7,4106.6,0.002]
[1759129542510,4.8237628,4106.7,4106.6,0.002]
[1759129542697,4.6324628,4106.7,4106.6,0.002]
[1759129543879,4.1817628,4106.7,4106.6,0.002]
[1759129545623,4.6324628,4106.7,4106.6,0.002]
[1759129545784,4.8237628,4106.7,4106.6,0.002]
[1759129547986,4.1817628,4106.7,4106.6,0.002]
[1759129548192,3.28922533,4106.7,4106.6,0.002]
[1759129548893,2.55664517,4106.7,4106.6,0.002]
[1759129552140,0.1216,4106.7,4106.6,0.002]
[1759129552510,3.1596,4106.7,4106.6,0.002]
[1759129552715,5.59464517,4106.7,4106.6,0.2336]
[1759129554041,5.97662326,4106.7,4106.6,0.2336]
[1759129554237,5.97762326,4106.7,4106.6,0.2336]
[1759129554438,6.81897961,4106.7,4106.6,0.002]
[1759129554643,7.46097961,4106.7,4106.6,0.002]
[1759129556325,6.81897961,4106.7,4106.6,0.002]
[1759129556513,7.46097961,4106.7,4106.6,0.002]
[1759129556719,7.26967961,4106.7,4106.6,0.002]
[1759129557311,7.46097961,4106.7,4106.6,0.002]
[1759129557603,7.45997961,4106.7,4106.6,0.002]
[1759129558704,15.29993038,4106.7,4106.6,0.002]
[1759129559213,16.03262325,4106.7,4106.6,0.002]
[1759129559404,15.65064516,4106.7,4106.6,0.002]
[1759129560342,6.39900152,4106.7,4106.6,0.002]
[1759129560528,6.39900152,4106.7,4106.6,0.2336]
[1759129560716,9.43600152,4106.7,4106.6,0.663]
[1759129561528,9.43600152,4106.7,4106.6,0.2336]
[1759129563845,9.81800202,4106.7,4106.6,0.2336]
[1759129564059,9.81800202,4106.7,4106.6,0.002]
[1759129564060,14.65795279,4106.7,4106.6,0.002]
[1759129564516,15.29995279,4106.7,4106.6,0.002]
[1759129565863,15.10865279,4106.7,4106.6,0.002]
[1759129566265,14.65795279,4106.7,4106.6,0.002]
[1759129567259,15.10865279,4106.7,4106.6,0.002]
[1759129568461,14.65795279,4106.7,4106.6,0.002]